Cogmind - Beta 14 @@@ ROGUE MODE // 2024.10.12 @ 02:57:00 Player: Delilah Keen Result: Destroyed by Y-45 Defender with Heavy Assault Rifle Performance ------------- Evolutions (0) 0 Regions Visited (2) 400 Robots Destroyed (9) 45 Value Destroyed (116) 116 Prototype IDs (0) 0 Alien Tech Used (0) 0 Bonus (0) 0 TOTAL SCORE: 561 Bonus ------- None Cogmind --------- Core Integrity 0/250 Matter 280/300 Energy 40/100 System Corruption 0% Temperature Cool (9) Movement Treading (160) Location -10/Subcaves Parts ------- > --- POWER (1) -------- (None) > --- PROPULSION (2) --- Light Treads Light Treads > --- UTILITY (2) ------ Targeting Computer ECM Suite > --- WEAPON (2) ------- (None) > --- INVENTORY (5) ---- Light Ion Engine Aluminum Leg Peak State ------------ > --- POWER ------------ Light Ion Engine > --- PROPULSION ------- Flight Unit Flight Unit > --- UTILITY ---------- Small Storage Unit Small Storage Unit > --- WEAPON ----------- EM Pulse Gun Light Assault Rifle > --- INVENTORY -------- Light Ion Engine Light Treads Aluminum Leg Aluminum Leg Small Laser [Rating: 7] Favorites ----------- Power Light Ion Engine Engine Light Ion Engine Propulsion Aluminum Leg Treads Light Treads Leg Aluminum Leg Flight Unit Flight Unit Utility Targeting Computer Device ECM Suite Storage Small Storage Unit Processor Targeting Computer Weapon EM Pulse Gun Energy Gun EM Pulse Gun Energy Cannon Beam Cannon Ballistic Gun Light Assault Rifle Build | -11 -10 -10 ------- Run | Yrd Mat Sub Slots Evolved . | . . . Power . | . . . Propulsion . | . . . Utility . | . . . Weapon . | . . . Parts Attached 22 | 6 14 2 Power 2 | 1 1 . Engine 2 | 1 1 . Core . | . . . Reactor . | . . . Propulsion 12 | 2 8 2 Treads 4 | . 2 2 Leg 4 | 2 2 . Wheel . | . . . Hover . | . . . Flight 4 | . 4 . Utility 4 | 1 3 . Device 1 | . 1 . Storage 2 | 1 1 . Processor 1 | . 1 . Hackware . | . . . Protection . | . . . Artifact . | . . . Weapon 4 | 2 2 . Energy Gun 2 | 1 1 . Energy Cannon 1 | . 1 . Ballistic Gun 1 | 1 . . Ballistic Cannon . | . . . Launcher . | . . . Special Weapon . | . . . Impact Weapon . | . . . Slashing Weapon . | . . . Piercing Weapon . | . . . Special Melee Weapon . | . . . Unidentified Prototypes . | . . . Parts Lost 6 | . 6 . Power 2 | . 2 . Propulsion 1 | . 1 . Utility . | . . . Weapon 3 | . 3 . Highest Loss Streak 4 | . 4 . To Critical Strikes . | . . . Average Slot Usage (%) 85 | . 86 57 Engine 13 | . 13 . Treads 5 | . 5 28 Leg 12 | . 13 . Flight 5 | . 5 . Device 8 | . 8 14 Storage 2 | . 2 . Processor 8 | . 8 14 Energy Gun 13 | . 13 . Energy Cannon 10 | . 10 . Ballistic Gun 3 | . 3 . Peak Build Rating 7 | 6 7 4 Average Rating 5 | 3 6 3 On Entrance 3 | . 6 3 Naked Turns . | . . . Heaviest Build 11 | 11 11 2 Greatest Support 40 | 20 40 40 Greatest Overweight (x) 3 | . 3 . Average Overweight (x) . | . . . Largest Inventory Capacity 8 | 8 8 5 Average Capacity 5 | 6 5 5 Most Carried 7 | 4 7 4 Average Carried 4 | 2 4 2 Final Capacity 8 | 8 5 5 Final Carried 4 | 4 4 2 Class Distribution -------------------- 100% | Mutant Dominant Class ---------------- Mutant | -10/Materials Mutant | -10/Subcaves Resources | -11 -10 -10 ----------- Run | Yrd Mat Sub Matter Collected 388 | 117 271 . Remotely . | . . . Salvage Created 247 | . 247 . Parts 20 | . 20 . Haulers Intercepted . | . . . Recyclers Shooed 2 | . 2 . Parts Field Recycled . | . . . Retrieved Matter . | . . . Parts Self-Destructed . | . . . Prevented . | . . . Kills | -11 -10 -10 ------- Run | Yrd Mat Sub Combat Hostiles Destroyed 7 | . 7 . Guns 5 | . 5 . Cannons 2 | . 2 . Classes Destroyed 4 | . 4 . Recycler 1 | . 1 . Operator 1 | . 1 . Swarmer 6 | . 6 . Grunt 1 | . 1 . Best Kill Streak 5 | . 5 . Combat Bots Only 5 | . 5 . Max Kills in Single Turn 1 | . 1 . Gunslinging . | . . . Exploded . | . . . Melee . | . . . Uniques/NPCs Destroyed . | . . . Combat | -11 -10 -10 -------- Run | Yrd Mat Sub Hostile Shots Fired 76 | . 72 4 Missed 17 | . 17 . Damage Taken 795 | . 735 60 Core 261 | . 234 27 Absorbed by Shields . | . . . Core Remaining (%) 100 | 100 . . Volleys Fired 31 | . 31 . Largest 2 | . 2 . Hottest 100 | . 100 . Shots Fired 60 | . 60 . Gun 42 | . 42 . Cannon 18 | . 18 . Launcher . | . . . Special . | . . . Kinetic 13 | . 13 . Thermal 25 | . 25 . Explosive . | . . . Electromagnetic 22 | . 22 . Robot Hit Streak 13 | . 13 . Robot Miss Streak 4 | . 4 . Penetration Max . | . . . Secondary Targets 1 | . 1 . Max Gunslinging Chain 1 | . 1 . Shots Hit Robots 36 | . 36 . Core Hits 14 | . 14 . Critical Kills . | . . . Critical Parts Destroyed . | . . . Critical Strikes . | . . . Melee Attacks . | . . . Impact . | . . . Slashing . | . . . Piercing . | . . . Sneak Attacks . | . . . Combat Hostiles . | . . . Follow-up Attacks . | . . . Damage Inflicted 509 | . 509 . Guns 257 | . 257 . Cannons 228 | . 228 . Explosions 24 | . 24 . Melee . | . . . Ramming . | . . . Kinetic 40 | . 40 . Thermal 318 | . 318 . Explosive . | . . . Electromagnetic 151 | . 151 . Impact . | . . . Slashing . | . . . Piercing . | . . . Highest Corruption . | . . . Average Corruption . | . . . Corruption Purged . | . . . Corruption Blocked . | . . . Overload Shots . | . . . Overflow Damage 9 | . 9 . Projectiles 9 | . 9 . Explosions . | . . . Melee . | . . . Knockbacks . | . . . Impact . | . . . Kinetic . | . . . Secondary . | . . . Self-Inflicted Damage . | . . . Shots . | . . . Rammed . | . . . Targets Rammed . | . . . Kicked . | . . . Crushed . | . . . Highest Temperature 223 | . 223 . Average Temperature 60 | . 60 . Received Heat Transfer 117 | . 99 18 Siege Activations . | . . . Robots Corrupted . | . . . Combat Hostiles . | . . . Parts Fried . | . . . Impact Corruptions . | . . . Robots Melted . | . . . Combat Hostiles . | . . . Parts Melted 1 | . 1 . Heat Transferred 681 | . 681 . Parts Sabotaged . | . . . Parts Stolen . | . . . Parts Stripped . | . . . Power Chain Reactions 1 | . 1 . Alert | -11 -10 -10 ------- Run | Yrd Mat Sub Peak Influence 173 | . 173 . Initial . | . . . Average 34 | . 37 . Maximum Alert Level . | . . . Low Security (%) 100 | 100 100 . Level 1 . | . . . Level 2 . | . . . Level 3 . | . . . Level 4 . | . . . Level 5 . | . . . High Security . | . . . Max Security . | . . . Squads Dispatched 1 | . 1 . Investigation . | . . . Extermination . | . . . Reinforcement 1 | . 1 . Assault . | . . . Garrison . | . . . Intercept . | . . . Searches Triggered . | . . . Construction Impeded . | . . . Haulers Reinforced . | . . . Active Scanning Responses . | . . . Cargo Convoy Interrupts . | . . . Stealth | -11 -10 -10 --------- Run | Yrd Mat Sub Distress Signals 1 | . 1 . Communications Jammed . | . . . Distress Signals . | . . . Times Spotted 17 | . 16 1 Peak Tracking Total 4 | . 4 1 Tactical Retreats 2 | . 2 . Traps | -11 -10 -10 ------- Run | Yrd Mat Sub Traps Triggered . | . . . Indirectly . | . . . Trap Hack Attempts . | . . . Triggered . | . . . Disarmed . | . . . Reprogrammed . | . . . Reused . | . . . Traps Extracted . | . . . Installed . | . . . Triggered . | . . . Machines | -11 -10 -10 ---------- Run | Yrd Mat Sub Machines Disabled . | . . . Max in Single Turn . | . . . Machines Repaired . | . . . Machines Dismantled . | . . . Machines Sabotaged . | . . . Overloaded Fab Kills . | . . . Hacking | -11 -10 -10 --------- Run | Yrd Mat Sub Machines Accessed 3 | . 3 . Terminals 2 | . 2 . Fabricators . | . . . Repair Stations . | . . . Recycling Units 1 | . 1 . Scanalyzers . | . . . Garrison Access . | . . . Total Hacks 16 | . 16 . Successful 10 | . 10 . Failed 6 | . 6 . Catastrophic 1 | . 1 . Database Lockouts . | . . . Manual 2 | . 2 . Terminals 8 | . 8 . Fabricators . | . . . Repair Stations . | . . . Recycling Units 8 | . 8 . Scanalyzers . | . . . Garrison Access . | . . . Terminal Hacks 3 | . 3 . Locate Traps 1 | . 1 . Surveillance Status 1 | . 1 . Hauler Manifests 1 | . 1 . Fabricator Hacks . | . . . Repair Station Hacks . | . . . Recycling Unit Hacks 7 | . 7 . Report Inventory 3 | . 3 . Retrieve Components 4 | . 4 . Scanalyzer . | . . . Garrison Access Hacks . | . . . Unauthorized Hacks . | . . . Terminals . | . . . Fabricators . | . . . Repair Stations . | . . . Recycling Units . | . . . Scanalyzers . | . . . Garrison Access . | . . . Data Cores Recovered . | . . . Used . | . . . Hacking Detections 2 | . 2 . Full Trace Events . | . . . Feedback Events . | . . . Feedback Blocked . | . . . Robot Schematics Acquired . | . . . Robots Built . | . . . Authchips . | . . . Time . | . . . Total Robot Build Rating . | . . . Part Schematics Acquired . | . . . Parts Built . | . . . Authchips . | . . . Time . | . . . Total Part Build Rating . | . . . Parts Repaired . | . . . Time . | . . . Parts Recycled . | . . . Recycled Matter . | . . . Retrieved Matter . | . . . Retrieved Components 15 | . 15 . Parts Scanalyzed . | . . . Part Schematics Acquired . | . . . Parts Damaged . | . . . Bothacking | -11 -10 -10 ------------ Run | Yrd Mat Sub Used RIF Installer . | . . . Robots Hacked . | . . . Non-combat . | . . . Combat . | . . . Robot Hacks Applied . | . . . Relay Couplers Released . | . . . Fabnet Peak Effective % . | . . . Robots Rewired . | . . . Allies Hacked . | . . . Hacks Repelled . | . . . Allies | -11 -10 -10 -------- Run | Yrd Mat Sub Total Allies . | . . . Largest Group . | . . . Highest-Rated Group . | . . . Highest-Rated Ally . | . . . Total Orders . | . . . Ally Attacks . | . . . Total Damage . | . . . Kills . | . . . Allies Corrupted . | . . . Allies Melted . | . . . Intel | -11 -10 -10 ------- Run | Yrd Mat Sub Robot Analysis Total . | . . . Derelict Logs Recovered . | . . . Drone Launches . | . . . Drone Recoveries . | . . . Exploration | -11 -10 -10 ------------- Run | Yrd Mat Sub Turns Passed 1293 | 112 1173 8 Spaces Moved 974 | 87 884 3 Core 10 | 7 3 . Treads 132 | . 130 2 Legs 536 | 80 455 1 Wheels . | . . . Hover . | . . . Flight 296 | . 296 . Fastest Speed 37 | 50 37 120 Average Speed 99 | 114 98 146 Slowest Speed 200 | 120 200 160 Overloaded Moves . | . . . Propulsion Burnouts . | . . . Robots Hopped 4 | . 4 . Cave-ins Triggered . | . . . Exploration Rate (%) 13 | 4 34 1 Regions Visited 2 Branch Regions 1 Pre-discovered Areas . | . . . Known Exits Taken . | . . . Unknown Exits Taken 2 | 1 1 . Scrap Searched . | . . . Spaces Dug . | . . . Terrain Destroyed 6 | . 6 . Melee . | . . . Projectile . | . . . AOE 6 | . 6 . Terrain Rammed . | . . . Walls Destroyed . | . . . Machines Disabled . | . . . Actions | -11 -10 -10 --------- Run | Yrd Mat Sub Total 1233 | 97 1128 8 Wait 185 | . 184 1 Move 964 | 86 875 3 Hop 4 | . 4 . Pick Up 9 | 5 4 . Fast Attach 15 | 5 10 . Attach 7 | 1 4 2 Detach 6 | . 5 1 Swap . | . . . Drop 12 | . 11 1 Fire 31 | . 31 . Melee . | . . . Ram . | . . . Kick . | . . . Crush . | . . . Escape Stasis . | . . . Rewire . | . . . Trap . | . . . Miscellaneous . | . . . Route ------- -11/Scrapyard -10/Materials -10/Subcaves History --------- Turn | Location | Event 10 | -11/Scrapyard | Discovered new exit (range 16) 113 | -11/Scrapyard | Entered Materials 304 | -10/Materials | Build established: Mutant 542 | -10/Materials | Discovered new exit (range 8) 1213 | -10/Materials | Derelicts attacked the area 1256 | -10/Materials | Core integrity fell below 50% 1273 | -10/Materials | Core integrity fell below 20% 1286 | -10/Materials | Entered Subcaves 1294 | -10/Subcaves | Destroyed by Y-45 Defender with Heavy Assault Rifle Last Messages --------------- Lgt. Treads 01047_ Acquired Aluminum Leg. 01139_ R-06 Scavenger collects Lgt. Ion Engine. 01142_ R-06 Scavenger collects Com. Wheel. 01146_ R-06 Scavenger collects Corrupted Sml. Storage Unit. 01150_ R-06 Scavenger collects Com. Wheel. 01197_ Acquired 19 matter. 01213_ ALERT: Derelict incursion detected, dispatching patrols to target area. 01222_ A-02 Transporter destroyed. 01223_ K-01 Serf collects debris. 01251_ Lgt. Ion Engine destroyed. 01252_ Aluminum Leg destroyed. 01263_ Sml. Laser destroyed. 01276_ Acquired 10 matter. 01282_ Beam Cannon destroyed. LOCATION=UNKNOWN AMBIENT_HEAT=-10 GOAL=ESCAPE 01290_ Dropped Corrupted Hacking Suite. Map ----- +----------------------------------------------------+ | ????????????????????????????????????????????? | | ????????????????????????????????????????????? | | ????????????????????????????????????????????? | | ????????????????????????????????????????????? | | ????????????????????????????????????????????? | | ????????????????????????????????????????????? | | ????????????????????????????????????????????? | | ????????????????????????????????????????????? | | ????????????????????????????????????????????? | | ????????????????????????????????????????????? | | ????????????????????????????????????????????? | | ????????????????????????????????????????????? | | ????????????????????????? ??????????????????? | | ????????????????????????# ?????????????????? | | ??????????????????????## ??????????????????? | | ?????????????????????# ???????????????????? | | ????????????????????? ???????????????????? | | ????????????????????? ???????##???????????? | | ????????????????????? ##???? ??????????? | | ????????????????????? #??? ???????????? | | ?????????????????###? #### ???????????? | | ????????????????## ## ???????????? | | ???????????????## ??????????? | | ???????????????# Y ??????????????? | | ???????????????# #????????????????????? | | ???????????????## ! @ ##????????????????????? | | ????????????????#######?????????????????????? | | ????????????????????????????????????????????? | | ????????????????????????????????????????????? | | ????????????????????????????????????????????? | | ????????????????????????????????????????????? | | ????????????????????????????????????????????? | | ????????????????????????????????????????????? | | ????????????????????????????????????????????? | | ????????????????????????????????????????????? | | ????????????????????????????????????????????? | | ????????????????????????????????????????????? | | ????????????????????????????????????????????? | | ????????????????????????????????????????????? | | ????????????????????????????????????????????? | | ????????????????????????????????????????????? | | ????????????????????????????????????????????? | | ????????????????????????????????????????????? | | ????????????????????????????????????????????? | | ????????????????????????????????????????????? | | ????????????????????????????????????????????? | | ????????????????????????????????????????????? | | | | | | | +----------------------------------------------------+ Best States ------------- Heat Dissipation 25 Energy Generation 10 Energy Capacity 125 Matter Stores 300 Matter Capacity 300 Sight Range 16 Terrain Scan Density 10 ECM Strength 1 Evasion (%) 62 Targeting Accuracy 5 Recoil Reduction 2 Item Schematics ----------------- None Robot Schematics ------------------ None Fabricated ------------ Nothing Alien Tech Used ----------------- None Achievements -------------- None Challenges ------------ None Game ------ Seed ComponentSignalShockpuncher Manual? 0 Play Time 00:16:05 Cumulative 13.7 hours Start 2024.10.12 @ 02:40:36 End 2024.10.12 @ 02:57:00 Sessions 1 Manual Loads 0 Difficulty Rogue Special Mode None Game No. 15 Rogue 15 Adventurer 0 Explorer 0 Win Type - Total 0 Types 0/0/0/0/0/0/0/0/0 Lore% 6 Gallery% 12 Achievement% 12 Wizard Run 0 Options --------- Layout 0 ASCII 0 Keyboard 1 Movement Arrows Keybinds 0 Fullscreen 1 Font 24/Smallcaps Map View 76x50 Zoom Use 0% Tactical HUD 1 Map Filters NONE Filters NONE Steam 1 RUN: ae2b58cd-f126-4289-bca5-ce741760f6ef